[Event "*** Titled Tuesday Blitz"]
[Site "Chess.com"]
[Date "2019.01.01"]
[Round "10"]
[White "Zufi1811"]
[Black "andante"]
[Result "1-0"]
[WhiteElo "2412"]
[BlackElo "2302"]
[TimeControl "180+2"]
[EndTime "15:20:45 PST"]
[Termination "Zufi1811 won by resignation"]

1. g3 {[%clk 0:03:01.9]} 1... g6 {[%clk 0:03:00.4]} 2. Bg2 {[%clk 0:03:03.8]}
2... Bg7 {[%clk 0:03:01.5]} 3. f4 {[%clk 0:03:05.2]} 3... Nf6 {[%clk 0:03:01.7]}
4. Nf3 {[%clk 0:03:06.7]} 4... d5 {[%clk 0:03:02.1]} 5. O-O {[%clk 0:03:08]}
5... c5 {[%clk 0:03:01.4]} 6. d3 {[%clk 0:03:09.5]} 6... Nc6 {[%clk 0:03:02.4]}
7. Nc3 {[%clk 0:03:10.6]} 7... O-O {[%clk 0:03:02.1]} 8. e4 {[%clk 0:03:11.5]}
8... dxe4 {[%clk 0:02:57.3]} 9. dxe4 {[%clk 0:03:13.4]} 9... Qxd1 {[%clk
0:02:56.3]} 10. Rxd1 {[%clk 0:03:15.3]} 10... Bg4 {[%clk 0:02:52.8]} 11. Be3
{[%clk 0:03:12.8]} 11... e5 {[%clk 0:02:27.6]} 12. Bxc5 {[%clk 0:03:10.1]} 12...
Rfe8 {[%clk 0:02:27.6]} 13. h3 {[%clk 0:03:06.6]} 13... Bxf3 {[%clk 0:02:21.3]}
14. Bxf3 {[%clk 0:03:08.5]} 14... Nd4 {[%clk 0:02:06.2]} 15. Bxd4 {[%clk
0:03:01]} 15... exd4 {[%clk 0:02:07]} 16. Rxd4 {[%clk 0:02:54.2]} 16... Nh5
{[%clk 0:02:06.9]} 17. Rd7 {[%clk 0:02:49.7]} 17... Nxg3 {[%clk 0:02:04.2]} 18.
e5 {[%clk 0:02:45.4]} 18... f6 {[%clk 0:01:43.9]} 19. e6 {[%clk 0:02:31.9]}
19... f5 {[%clk 0:01:35.6]} 20. Nb5 {[%clk 0:02:24.3]} 20... Rad8 {[%clk
0:00:54.4]} 21. Rad1 {[%clk 0:02:13.6]} 21... Bf6 {[%clk 0:00:47.3]} 22. Nc7
{[%clk 0:02:06.6]} 22... Rxd7 {[%clk 0:00:45.4]} 23. exd7 {[%clk 0:02:08.2]}
23... Rb8 {[%clk 0:00:26.5]} 24. Re1 {[%clk 0:01:53.3]} 24... Ne4 {[%clk
0:00:24]} 25. Bxe4 {[%clk 0:01:50.9]} 25... fxe4 {[%clk 0:00:24.8]} 26. Rxe4
{[%clk 0:01:52.3]} 26... Kf7 {[%clk 0:00:26.1]} 27. Nb5 {[%clk 0:01:21.9]} 27...
Rd8 {[%clk 0:00:21.4]} 28. Nd6+ {[%clk 0:01:21.1]} 28... Kg7 {[%clk 0:00:20.2]}
29. Ne8+ {[%clk 0:01:20.6]} 29... Kf7 {[%clk 0:00:21]} 30. Nxf6 {[%clk
0:01:21.7]} 30... Kxf6 {[%clk 0:00:22.1]} 31. Rd4 {[%clk 0:01:22.2]} 31... Ke6
{[%clk 0:00:23]} 32. Kf2 {[%clk 0:01:22.3]} 32... b6 {[%clk 0:00:19.4]} 33. Ke3
{[%clk 0:01:22.6]} 33... h5 {[%clk 0:00:19.6]} 34. Ke4 {[%clk 0:01:22.3]} 34...
Kf6 {[%clk 0:00:18.7]} 35. c4 {[%clk 0:01:22.1]} 35... Ke6 {[%clk 0:00:19.8]}
36. b4 {[%clk 0:01:22.8]} 36... Kf6 {[%clk 0:00:20]} 37. Rd6+ {[%clk 0:01:22.1]}
37... Kf7 {[%clk 0:00:20.7]} 38. Ke5 {[%clk 0:01:22.5]} 38... h4 {[%clk
0:00:20]} 39. c5 {[%clk 0:01:22.6]} 39... bxc5 {[%clk 0:00:20.3]} 40. bxc5
{[%clk 0:01:24.5]} 40... Ke7 {[%clk 0:00:19.7]} 41. c6 {[%clk 0:01:25.5]} 41...
Rb8 {[%clk 0:00:19]} 42. Re6+ {[%clk 0:01:21]} 1-0

[Event "*** Titled Tuesday Blitz"]
[Site "Chess.com"]
[Date "2019.01.01"]
[Round "10"]
[White "champ2005"]
[Black "mitrabhaa"]
[Result "0-1"]
[WhiteElo "2644"]
[BlackElo "2622"]
[TimeControl "180+2"]
[EndTime "15:20:51 PST"]
[Termination "mitrabhaa won by resignation"]

1. b3 {[%clk 0:03:01.1]} 1... d5 {[%clk 0:02:59.1]} 2. Bb2 {[%clk 0:03:02.1]}
2... Bg4 {[%clk 0:03:00.5]} 3. Nf3 {[%clk 0:03:02.2]} 3... Bxf3 {[%clk
0:03:01.5]} 4. gxf3 {[%clk 0:03:03]} 4... Nf6 {[%clk 0:03:02.7]} 5. e3 {[%clk
0:03:02.3]} 5... Nbd7 {[%clk 0:03:03.9]} 6. h4 {[%clk 0:03:01.9]} 6... h5 {[%clk
0:03:04]} 7. Bh3 {[%clk 0:02:59.1]} 7... e6 {[%clk 0:03:04.7]} 8. Nc3 {[%clk
0:02:59.6]} 8... g6 {[%clk 0:03:05.6]} 9. Qe2 {[%clk 0:02:55]} 9... Bg7 {[%clk
0:03:06.7]} 10. O-O-O {[%clk 0:02:55.9]} 10... a5 {[%clk 0:03:05.2]} 11. a4
{[%clk 0:02:52.3]} 11... c6 {[%clk 0:03:06]} 12. f4 {[%clk 0:02:53.2]} 12... O-O
{[%clk 0:03:06.6]} 13. Rhg1 {[%clk 0:02:49.9]} 13... Qe7 {[%clk 0:03:07.6]} 14.
f3 {[%clk 0:02:44.2]} 14... Rfb8 {[%clk 0:03:08.8]} 15. Qg2 {[%clk 0:02:21.8]}
15... b5 {[%clk 0:03:07.6]} 16. f5 {[%clk 0:02:23]} 16... exf5 {[%clk 0:03:07]}
17. Bxf5 {[%clk 0:02:23.6]} 17... Nc5 {[%clk 0:03:08]} 18. Bxg6 {[%clk
0:02:17.1]} 18... fxg6 {[%clk 0:03:08.2]} 19. Qxg6 {[%clk 0:02:18.2]} 19... Qf7
{[%clk 0:03:03.4]} 20. Qg5 {[%clk 0:02:13.1]} 20... Ne6 {[%clk 0:03:02.8]} 21.
Qg2 {[%clk 0:01:55.2]} 21... Kh7 {[%clk 0:03:03]} 22. axb5 {[%clk 0:01:52.9]}
22... cxb5 {[%clk 0:03:03.4]} 23. Qh3 {[%clk 0:01:50.9]} 23... a4 {[%clk
0:03:02.9]} 24. Qf5+ {[%clk 0:01:50.7]} 24... Kg8 {[%clk 0:03:02]} 25. Nxd5
{[%clk 0:01:33.2]} 25... Nxd5 {[%clk 0:02:59.6]} 26. Qxd5 {[%clk 0:01:35]} 26...
a3 {[%clk 0:02:49.1]} 27. Bxg7 {[%clk 0:01:24.2]} 27... Nxg7 {[%clk 0:02:49.4]}
28. Qxf7+ {[%clk 0:01:00.6]} 28... Kxf7 {[%clk 0:02:48.7]} 29. Rg5 {[%clk
0:00:57.5]} 29... b4 {[%clk 0:02:49.6]} 30. d4 {[%clk 0:00:44.8]} 30... Rc8
{[%clk 0:02:50.2]} 31. Kb1 {[%clk 0:00:40.7]} 31... Rc3 {[%clk 0:02:48.7]} 32.
d5 {[%clk 0:00:37.7]} 32... Rxe3 {[%clk 0:02:47.8]} 33. d6 {[%clk 0:00:38.3]}
33... Rxf3 {[%clk 0:02:41.2]} 34. d7 {[%clk 0:00:35.6]} 34... Ne6 {[%clk
0:02:42]} 35. Rxh5 {[%clk 0:00:36.3]} 35... Rc3 {[%clk 0:02:36.2]} 36. Rh7+
{[%clk 0:00:32.4]} 36... Kg6 {[%clk 0:02:26.4]} 37. Re7 {[%clk 0:00:30.7]} 37...
a2+ {[%clk 0:02:23.9]} 38. Kb2 {[%clk 0:00:26.1]} 38... Nd4 {[%clk 0:02:24]} 39.
Rg1+ {[%clk 0:00:11.2]} 39... Kf6 {[%clk 0:02:20.9]} 0-1

[Event "*** Titled Tuesday Blitz"]
[Site "Chess.com"]
[Date "2019.01.01"]
[Round "10"]
[White "Ali_rastbod"]
[Black "BogdanDeac"]
[Result "0-1"]
[WhiteElo "2600"]
[BlackElo "2749"]
[TimeControl "180+2"]
[EndTime "15:21:03 PST"]
[Termination "BogdanDeac won by resignation"]

1. c4 {[%clk 0:03:01.9]} 1... e5 {[%clk 0:03:00.4]} 2. Nc3 {[%clk 0:03:01.2]}
2... Nf6 {[%clk 0:03:00.3]} 3. Nf3 {[%clk 0:03:01.6]} 3... Nc6 {[%clk
0:03:01.4]} 4. e4 {[%clk 0:03:02]} 4... Bb4 {[%clk 0:03:00]} 5. d3 {[%clk
0:03:02]} 5... d6 {[%clk 0:03:00.9]} 6. Be2 {[%clk 0:02:58.8]} 6... Bc5 {[%clk
0:03:01.7]} 7. O-O {[%clk 0:02:58.1]} 7... Nd4 {[%clk 0:03:02.6]} 8. Nxd4 {[%clk
0:02:57.1]} 8... Bxd4 {[%clk 0:03:04.5]} 9. Be3 {[%clk 0:02:57.1]} 9... Bxe3
{[%clk 0:03:05.4]} 10. fxe3 {[%clk 0:02:59]} 10... O-O {[%clk 0:03:07.3]} 11.
Rf2 {[%clk 0:02:49.7]} 11... c6 {[%clk 0:03:07.3]} 12. Qb3 {[%clk 0:02:48.3]}
12... Rb8 {[%clk 0:03:06.1]} 13. Raf1 {[%clk 0:02:48.5]} 13... Be6 {[%clk
0:03:06.2]} 14. Qc2 {[%clk 0:02:40.3]} 14... b5 {[%clk 0:03:06.3]} 15. b3 {[%clk
0:02:32.6]} 15... bxc4 {[%clk 0:03:07.1]} 16. dxc4 {[%clk 0:02:28.4]} 16... Nd7
{[%clk 0:03:06.8]} 17. Rd1 {[%clk 0:02:24.9]} 17... Nc5 {[%clk 0:03:07.7]} 18.
Rd2 {[%clk 0:02:24.3]} 18... Qg5 {[%clk 0:03:03.4]} 19. Rf3 {[%clk 0:02:20.1]}
19... Rfd8 {[%clk 0:03:03.6]} 20. Rg3 {[%clk 0:02:20.1]} 20... Qe7 {[%clk
0:03:03.9]} 21. Bg4 {[%clk 0:02:09]} 21... Bxg4 {[%clk 0:03:02.4]} 22. Rxg4
{[%clk 0:02:10.7]} 22... a5 {[%clk 0:03:04.3]} 23. Rg3 {[%clk 0:02:02.1]} 23...
g6 {[%clk 0:03:01.8]} 24. Rf3 {[%clk 0:01:50.1]} 24... Kg7 {[%clk 0:03:02.5]}
25. Rdf2 {[%clk 0:01:46.9]} 25... Rf8 {[%clk 0:02:59.5]} 26. Qd1 {[%clk
0:01:34.7]} 26... Rb4 {[%clk 0:02:59.4]} 27. Rd2 {[%clk 0:01:34.5]} 27... a4
{[%clk 0:02:55.3]} 28. Nxa4 {[%clk 0:01:15.4]} 28... Nxa4 {[%clk 0:02:53.6]} 29.
bxa4 {[%clk 0:01:17.3]} 29... Rfb8 {[%clk 0:02:52.2]} 30. Rf1 {[%clk 0:01:08.9]}
30... Rxc4 {[%clk 0:02:52.7]} 31. Rxd6 {[%clk 0:01:07.8]} 31... Rb7 {[%clk
0:02:53.6]} 32. a5 {[%clk 0:01:03.9]} 32... Rxe4 {[%clk 0:02:54.3]} 33. Rxc6
{[%clk 0:01:03.6]} 33... Rxe3 {[%clk 0:02:53.3]} 34. a6 {[%clk 0:01:01.7]} 34...
Ra7 {[%clk 0:02:54.2]} 35. Qd5 {[%clk 0:00:57.6]} 35... Ra3 {[%clk 0:02:52.8]}
36. Re1 {[%clk 0:00:25]} 36... f6 {[%clk 0:02:46.5]} 37. Re6 {[%clk 0:00:18.8]}
37... Qf7 {[%clk 0:02:45.3]} 38. Qc6 {[%clk 0:00:14.8]} 38... Rxa2 {[%clk
0:02:41.3]} 39. Rf1 {[%clk 0:00:16.1]} 39... R2xa6 {[%clk 0:02:37]} 40. Qxa6
{[%clk 0:00:16.2]} 40... Rxa6 {[%clk 0:02:38.9]} 41. Rxa6 {[%clk 0:00:17.9]}
41... f5 {[%clk 0:02:39.6]} 42. Ra3 {[%clk 0:00:17.4]} 42... e4 {[%clk
0:02:38.5]} 43. Rfa1 {[%clk 0:00:07.5]} 43... Qf6 {[%clk 0:02:38.4]} 44. Ra7+
{[%clk 0:00:07.4]} 44... Kh6 {[%clk 0:02:39.2]} 45. R7a3 {[%clk 0:00:09.3]}
45... f4 {[%clk 0:02:37.8]} 46. Re1 {[%clk 0:00:08.9]} 46... Qd4+ {[%clk
0:02:36]} 47. Kh1 {[%clk 0:00:09.7]} 47... Qf2 {[%clk 0:02:35.5]} 48. Raa1
{[%clk 0:00:10.6]} 48... e3 {[%clk 0:02:35]} 49. Rf1 {[%clk 0:00:11.4]} 49...
Qd2 {[%clk 0:02:35.8]} 50. Rxf4 {[%clk 0:00:11.6]} 50... e2 {[%clk 0:02:36.4]}
51. Rh4+ {[%clk 0:00:13]} 51... Kg5 {[%clk 0:02:36.8]} 52. Re4 {[%clk
0:00:14.9]} 52... Qd1+ {[%clk 0:02:35.7]} 0-1

[Event "*** Titled Tuesday Blitz"]
[Site "Chess.com"]
[Date "2019.01.01"]
[Round "10"]
[White "TheBigBadChessDad"]
[Black "Obito24"]
[Result "1/2-1/2"]
[WhiteElo "2263"]
[BlackElo "2606"]
[TimeControl "180+2"]
[EndTime "15:21:10 PST"]
[Termination "Game drawn by agreement"]

1. d4 {[%clk 0:03:01.9]} 1... Nf6 {[%clk 0:02:56.8]} 2. Nf3 {[%clk 0:03:02.4]}
2... e6 {[%clk 0:02:58]} 3. Bf4 {[%clk 0:03:03.1]} 3... b6 {[%clk 0:02:58.7]} 4.
e3 {[%clk 0:03:00.5]} 4... Bb7 {[%clk 0:03:00.1]} 5. Bd3 {[%clk 0:03:00.1]} 5...
c5 {[%clk 0:03:01.5]} 6. c3 {[%clk 0:02:58.8]} 6... Be7 {[%clk 0:03:02]} 7. Nbd2
{[%clk 0:02:59.4]} 7... cxd4 {[%clk 0:03:02.7]} 8. cxd4 {[%clk 0:02:58.6]} 8...
d6 {[%clk 0:03:02.9]} 9. Qe2 {[%clk 0:02:57]} 9... Nbd7 {[%clk 0:03:01.4]} 10.
h3 {[%clk 0:02:57.8]} 10... a6 {[%clk 0:03:01.2]} 11. a4 {[%clk 0:02:57.8]}
11... O-O {[%clk 0:03:01.4]} 12. O-O {[%clk 0:02:57.5]} 12... Nd5 {[%clk
0:02:42.6]} 13. Bh2 {[%clk 0:02:52.3]} 13... Nb4 {[%clk 0:02:44.1]} 14. Rfc1
{[%clk 0:02:45.6]} 14... Nxd3 {[%clk 0:02:41.8]} 15. Qxd3 {[%clk 0:02:46.4]}
15... Rc8 {[%clk 0:02:43.5]} 16. Ne4 {[%clk 0:02:28.9]} 16... Rxc1+ {[%clk
0:02:32.4]} 17. Rxc1 {[%clk 0:02:28.3]} 17... Qb8 {[%clk 0:02:34.3]} 18. Rc3
{[%clk 0:01:58.3]} 18... Rc8 {[%clk 0:02:22.7]} 19. Nfd2 {[%clk 0:01:31.6]}
19... Rxc3 {[%clk 0:02:14.1]} 20. Qxc3 {[%clk 0:01:21.8]} 20... f5 {[%clk
0:01:56.4]} 21. Ng3 {[%clk 0:01:11.9]} 21... Nf6 {[%clk 0:01:19.6]} 22. Ne2
{[%clk 0:00:59]} 22... Nd5 {[%clk 0:01:15.4]} 23. Qb3 {[%clk 0:00:56.4]} 23...
Qc7 {[%clk 0:01:14.3]} 24. Nc3 {[%clk 0:00:57.4]} 24... Qc6 {[%clk 0:01:08.3]}
25. Nxd5 {[%clk 0:00:47.9]} 25... Qxd5 {[%clk 0:01:09.1]} 26. Qxd5 {[%clk
0:00:49.1]} 26... Bxd5 {[%clk 0:01:10.7]} 27. b3 {[%clk 0:00:50.4]} 27... b5
{[%clk 0:01:10.3]} 28. axb5 {[%clk 0:00:50.2]} 28... axb5 {[%clk 0:01:12.2]} 29.
f3 {[%clk 0:00:50.2]} 29... Kf7 {[%clk 0:01:10]} 30. Kf2 {[%clk 0:00:47.7]}
30... Ke8 {[%clk 0:01:09.4]} 31. e4 {[%clk 0:00:47.2]} 31... fxe4 {[%clk
0:01:06.8]} 32. fxe4 {[%clk 0:00:48.1]} 32... Bb7 {[%clk 0:01:08.3]} 33. Ke3
{[%clk 0:00:44.7]} 33... Kd7 {[%clk 0:01:08.4]} 34. Nf3 {[%clk 0:00:40]} 34...
Bd8 {[%clk 0:01:02]} 35. Bg3 {[%clk 0:00:29.1]} 35... h6 {[%clk 0:01:02.4]} 36.
b4 {[%clk 0:00:29]} 36... Bb6 {[%clk 0:01:01.2]} 37. Kd3 {[%clk 0:00:28.2]}
37... Ke7 {[%clk 0:01:00.3]} 38. e5 {[%clk 0:00:23.7]} 38... dxe5 {[%clk
0:00:50.4]} 39. Bxe5 {[%clk 0:00:22.2]} 1/2-1/2

[Event "*** Titled Tuesday Blitz"]
[Site "Chess.com"]
[Date "2019.01.01"]
[Round "10"]
[White "VladDobrov"]
[Black "1e41-0"]
[Result "1-0"]
[WhiteElo "2821"]
[BlackElo "2578"]
[TimeControl "180+2"]
[EndTime "15:21:19 PST"]
[Termination "VladDobrov won by resignation"]

1. e4 {[%clk 0:03:01.9]} 1... e6 {[%clk 0:02:57.6]} 2. d4 {[%clk 0:02:59.4]}
2... d5 {[%clk 0:02:58.8]} 3. Nc3 {[%clk 0:02:59.1]} 3... Bb4 {[%clk 0:02:59.2]}
4. e5 {[%clk 0:02:53.5]} 4... c5 {[%clk 0:03:00.1]} 5. a3 {[%clk 0:02:53.8]}
5... Bxc3+ {[%clk 0:03:00.3]} 6. bxc3 {[%clk 0:02:55.7]} 6... Qa5 {[%clk
0:02:57.2]} 7. Bd2 {[%clk 0:02:56.2]} 7... Qa4 {[%clk 0:02:57.4]} 8. Qb1 {[%clk
0:02:55.1]} 8... c4 {[%clk 0:02:54.7]} 9. h4 {[%clk 0:02:55]} 9... Ne7 {[%clk
0:02:46.6]} 10. h5 {[%clk 0:02:56.1]} 10... h6 {[%clk 0:02:46.8]} 11. Rh3 {[%clk
0:02:36.4]} 11... Nbc6 {[%clk 0:02:46.7]} 12. Rg3 {[%clk 0:02:31.4]} 12... Nf5
{[%clk 0:02:46.1]} 13. Rf3 {[%clk 0:02:32.7]} 13... Bd7 {[%clk 0:02:44.2]} 14.
g4 {[%clk 0:02:33.5]} 14... Nfe7 {[%clk 0:02:43.1]} 15. Nh3 {[%clk 0:02:31.6]}
15... Rf8 {[%clk 0:02:39.4]} 16. g5 {[%clk 0:02:24.5]} 16... hxg5 {[%clk
0:02:38.8]} 17. Nxg5 {[%clk 0:02:25.4]} 17... Nf5 {[%clk 0:02:39.1]} 18. Rxf5
{[%clk 0:01:50.7]} 18... exf5 {[%clk 0:02:38]} 19. h6 {[%clk 0:01:51.9]} 19...
gxh6 {[%clk 0:02:13.8]} 20. Nh7 {[%clk 0:01:52.1]} 20... O-O-O {[%clk
0:02:14.4]} 21. Nxf8 {[%clk 0:01:49.7]} 21... Rxf8 {[%clk 0:02:16.3]} 22. Bg2
{[%clk 0:01:44.3]} 22... Rg8 {[%clk 0:02:13]} 23. Kf1 {[%clk 0:01:43]} 23... f4
{[%clk 0:02:07.7]} 24. Bxd5 {[%clk 0:01:29.1]} 24... Ne7 {[%clk 0:02:07.4]} 25.
Qxb7+ {[%clk 0:01:27.9]} 25... Kd8 {[%clk 0:02:07.4]} 26. Qa8+ {[%clk
0:01:01.3]} 26... Kc7 {[%clk 0:01:58.2]} 27. Qb7+ {[%clk 0:01:02]} 27... Kd8
{[%clk 0:01:59.8]} 28. Qb8+ {[%clk 0:01:03.3]} 28... Nc8 {[%clk 0:01:28.2]} 29.
Be4 {[%clk 0:00:49]} 29... f3 {[%clk 0:01:22.3]} 30. e6 {[%clk 0:00:40.5]} 30...
Bxe6 {[%clk 0:01:18.5]} 31. Bxh6 {[%clk 0:00:34]} 31... Bh3+ {[%clk 0:00:46.9]}
32. Ke1 {[%clk 0:00:34.7]} 32... Qa6 {[%clk 0:00:35.7]} 33. Bf4 {[%clk
0:00:24.7]} 33... Rg1+ {[%clk 0:00:25.8]} 34. Kd2 {[%clk 0:00:25.2]} 34... Rxa1
{[%clk 0:00:27.7]} 35. Qc7+ {[%clk 0:00:26.4]} 35... Ke8 {[%clk 0:00:28.3]} 36.
Bc6+ {[%clk 0:00:26.6]} 36... Kf8 {[%clk 0:00:28.8]} 37. Bh6+ {[%clk 0:00:27]}
37... Kg8 {[%clk 0:00:23.5]} 38. Qg3+ {[%clk 0:00:28.5]} 1-0

[Event "*** Titled Tuesday Blitz"]
[Site "Chess.com"]
[Date "2019.01.01"]
[Round "10"]
[White "Shivagami"]
[Black "Winehouse83"]
[Result "0-1"]
[WhiteElo "2132"]
[BlackElo "2400"]
[TimeControl "180+2"]
[EndTime "15:21:19 PST"]
[Termination "Winehouse83 won by resignation"]

1. d4 {[%clk 0:03:01.9]} 1... Nf6 {[%clk 0:03:00.4]} 2. Bf4 {[%clk 0:03:03.1]}
2... c5 {[%clk 0:02:59.4]} 3. e3 {[%clk 0:03:04.2]} 3... g6 {[%clk 0:02:59.3]}
4. Nf3 {[%clk 0:03:03.6]} 4... Bg7 {[%clk 0:02:58.9]} 5. c3 {[%clk 0:03:04.8]}
5... cxd4 {[%clk 0:02:59.1]} 6. exd4 {[%clk 0:03:04.6]} 6... b6 {[%clk
0:03:00.6]} 7. Nbd2 {[%clk 0:03:05]} 7... Bb7 {[%clk 0:03:01.6]} 8. Be2 {[%clk
0:03:06.4]} 8... O-O {[%clk 0:03:01]} 9. O-O {[%clk 0:03:07.9]} 9... d6 {[%clk
0:03:02.5]} 10. a4 {[%clk 0:03:05.1]} 10... a6 {[%clk 0:03:03.4]} 11. Nc4 {[%clk
0:02:58.6]} 11... Nbd7 {[%clk 0:03:04]} 12. Qc1 {[%clk 0:02:57]} 12... Rc8
{[%clk 0:03:00.1]} 13. Bh6 {[%clk 0:02:56.4]} 13... Bxf3 {[%clk 0:02:58.6]} 14.
gxf3 {[%clk 0:02:53.8]} 14... Qc7 {[%clk 0:02:55.7]} 15. Bxg7 {[%clk 0:02:52.2]}
15... Kxg7 {[%clk 0:02:56.9]} 16. Ne3 {[%clk 0:02:43.2]} 16... Ra8 {[%clk
0:02:53.6]} 17. Bd3 {[%clk 0:02:40.2]} 17... Qb7 {[%clk 0:02:51.4]} 18. Qd1
{[%clk 0:02:33.8]} 18... e5 {[%clk 0:02:49.5]} 19. Nc4 {[%clk 0:02:31.5]} 19...
Qc7 {[%clk 0:02:47.7]} 20. Re1 {[%clk 0:02:28.8]} 20... Nh5 {[%clk 0:02:44.6]}
21. Bf1 {[%clk 0:02:21.3]} 21... Nf4 {[%clk 0:02:44.5]} 22. dxe5 {[%clk
0:02:13.7]} 22... Nxe5 {[%clk 0:02:36.8]} 23. Nxd6 {[%clk 0:02:09.9]} 23... Rad8
{[%clk 0:02:16.9]} 24. Rxe5 {[%clk 0:02:08.7]} 24... Rxd6 {[%clk 0:02:18]} 25.
Qe1 {[%clk 0:02:05.7]} 25... a5 {[%clk 0:02:12.8]} 26. Re7 {[%clk 0:02:04.2]}
26... Qc5 {[%clk 0:02:12.8]} 27. Qe5+ {[%clk 0:02:01.3]} 27... Rf6 {[%clk
0:01:56.9]} 28. Rd1 {[%clk 0:01:53.9]} 28... Qc6 {[%clk 0:01:53.1]} 29. Red7
{[%clk 0:01:47.5]} 29... Qxf3 {[%clk 0:01:44.6]} 30. R1d6 {[%clk 0:01:39.6]}
30... Ne6 {[%clk 0:01:00]} 31. Qg3 {[%clk 0:01:26.7]} 31... Qf5 {[%clk
0:00:50.5]} 32. Bh3 {[%clk 0:01:20.4]} 32... Qb1+ {[%clk 0:00:40.2]} 33. Kg2
{[%clk 0:01:19.7]} 33... Qe4+ {[%clk 0:00:40.2]} 34. Kg1 {[%clk 0:01:16.6]}
34... Nf4 {[%clk 0:00:38.2]} 35. Bf1 {[%clk 0:01:09.7]} 35... Qe1 {[%clk
0:00:21.6]} 36. Qe3 {[%clk 0:01:04.7]} 36... Nh3+ {[%clk 0:00:15.9]} 37. Kg2
{[%clk 0:00:56.4]} 37... Rxf2+ {[%clk 0:00:15.6]} 0-1

[Event "*** Titled Tuesday Blitz"]
[Site "Chess.com"]
[Date "2019.01.01"]
[Round "10"]
[White "Chessialist"]
[Black "Anar_Aliakbarov"]
[Result "1-0"]
[WhiteElo "2534"]
[BlackElo "2450"]
[TimeControl "180+2"]
[EndTime "15:21:23 PST"]
[Termination "Chessialist won by resignation"]

1. e4 {[%clk 0:03:01.9]} 1... c5 {[%clk 0:02:58.9]} 2. Nf3 {[%clk 0:03:03]} 2...
e6 {[%clk 0:02:56.5]} 3. Qe2 {[%clk 0:03:03.4]} 3... Nc6 {[%clk 0:02:56.5]} 4.
d3 {[%clk 0:03:04.4]} 4... Nf6 {[%clk 0:02:50.8]} 5. g3 {[%clk 0:03:05]} 5... d5
{[%clk 0:02:50.6]} 6. Bg2 {[%clk 0:02:59.3]} 6... Be7 {[%clk 0:02:50.9]} 7. O-O
{[%clk 0:02:59.2]} 7... O-O {[%clk 0:02:51.5]} 8. Re1 {[%clk 0:02:59.9]} 8... b5
{[%clk 0:02:51.9]} 9. Nbd2 {[%clk 0:02:59.3]} 9... a5 {[%clk 0:02:52.3]} 10. e5
{[%clk 0:03:00.6]} 10... Nd7 {[%clk 0:02:53]} 11. Nf1 {[%clk 0:03:02.2]} 11...
Qc7 {[%clk 0:02:53.9]} 12. h4 {[%clk 0:03:02.2]} 12... b4 {[%clk 0:02:42.8]} 13.
Bf4 {[%clk 0:03:02.8]} 13... a4 {[%clk 0:02:43.8]} 14. h5 {[%clk 0:03:03.6]}
14... Ba6 {[%clk 0:02:21]} 15. N1h2 {[%clk 0:03:03.4]} 15... Nd4 {[%clk
0:02:20.1]} 16. Qd2 {[%clk 0:03:02.9]} 16... Rfc8 {[%clk 0:02:10.7]} 17. Ng4
{[%clk 0:02:58.9]} 17... Nxf3+ {[%clk 0:02:04.2]} 18. Bxf3 {[%clk 0:02:59.7]}
18... c4 {[%clk 0:02:06.1]} 19. Bg5 {[%clk 0:03:00.3]} 19... Bf8 {[%clk
0:01:53.3]} 20. h6 {[%clk 0:02:09.1]} 20... g6 {[%clk 0:01:46.9]} 21. Qe3 {[%clk
0:01:28]} 21... cxd3 {[%clk 0:01:34.3]} 22. cxd3 {[%clk 0:01:28.7]} 22... Qc2
{[%clk 0:01:35.5]} 23. Bxd5 {[%clk 0:01:26.1]} 23... Qxd3 {[%clk 0:01:27]} 24.
Qxd3 {[%clk 0:01:26.2]} 24... Bxd3 {[%clk 0:01:27]} 25. Bxa8 {[%clk 0:01:28]}
25... Rxa8 {[%clk 0:01:11]} 26. Rad1 {[%clk 0:01:29]} 26... Nc5 {[%clk
0:01:09.7]} 27. Be3 {[%clk 0:01:16.6]} 27... Bc2 {[%clk 0:00:58.7]} 28. Nf6+
{[%clk 0:01:13.7]} 28... Kh8 {[%clk 0:00:58.9]} 29. Bxc5 {[%clk 0:01:14.8]}
29... Bxc5 {[%clk 0:00:52]} 30. Rd7 {[%clk 0:01:14.4]} 30... g5 {[%clk
0:00:48.3]} 31. Rxf7 {[%clk 0:01:09.9]} 31... b3 {[%clk 0:00:47.2]} 32. Rc1
{[%clk 0:00:48.5]} 32... bxa2 {[%clk 0:00:43.6]} 33. Rxc2 {[%clk 0:00:49.5]}
33... a1=Q+ {[%clk 0:00:44.5]} 34. Kg2 {[%clk 0:00:50.9]} 34... Ra7 {[%clk
0:00:13.5]} 35. Rxa7 {[%clk 0:00:50.2]} 1-0